[Event "Betsys MČR v online bleskovém šachu 2021"]
[Site "Chess.com"]
[Date "2021.04.17"]
[Round "12"]
[White "VOJTASEK2009"]
[Black "RomanHlavicka"]
[Result "1-0"]
[WhiteElo "1291"]
[BlackElo "1517"]
[TimeControl "180+1"]
[EndTime "11:03:19 PDT"]
[Termination "Uživatel VOJTASEK2009 zvítězil po vzdání soupeře"]

1. e4 {[%clk 0:03:00.9]} 1... c5 {[%clk 0:02:59]} 2. Nf3 {[%clk 0:02:59.3]} 2...
Nc6 {[%clk 0:02:59]} 3. d4 {[%clk 0:02:58.7]} 3... cxd4 {[%clk 0:02:57.7]} 4.
Nxd4 {[%clk 0:02:57.8]} 4... d6 {[%clk 0:02:58.3]} 5. Nc3 {[%clk 0:02:55.9]}
5... Nf6 {[%clk 0:02:58.8]} 6. Be2 {[%clk 0:02:54.2]} 6... a6 {[%clk 0:02:55.7]}
7. Be3 {[%clk 0:02:54.1]} 7... e6 {[%clk 0:02:53.9]} 8. O-O {[%clk 0:02:52.3]}
8... Be7 {[%clk 0:02:54]} 9. h3 {[%clk 0:02:51.1]} 9... O-O {[%clk 0:02:53.9]}
10. Qd2 {[%clk 0:02:45.7]} 10... Bd7 {[%clk 0:02:53.3]} 11. Rfe1 {[%clk
0:02:42.2]} 11... Rc8 {[%clk 0:02:52.6]} 12. Rad1 {[%clk 0:02:40.7]} 12... Nxd4
{[%clk 0:02:49.5]} 13. Bxd4 {[%clk 0:02:39.4]} 13... d5 {[%clk 0:02:43.9]} 14.
exd5 {[%clk 0:02:34.5]} 14... Nxd5 {[%clk 0:02:42.1]} 15. Nxd5 {[%clk
0:02:32.4]} 15... exd5 {[%clk 0:02:41.1]} 16. Be3 {[%clk 0:02:25.9]} 16... Be6
{[%clk 0:02:36.6]} 17. Bd4 {[%clk 0:02:22]} 17... Bf6 {[%clk 0:02:32.1]} 18.
Bxf6 {[%clk 0:02:16]} 18... Qxf6 {[%clk 0:02:31.7]} 19. Bd3 {[%clk 0:02:05.2]}
19... Qxb2 {[%clk 0:02:23.8]} 20. Qf4 {[%clk 0:01:52.4]} 20... Qxa2 {[%clk
0:02:10.7]} 21. Qh4 {[%clk 0:01:49.2]} 21... h6 {[%clk 0:02:05]} 22. Re3 {[%clk
0:01:44.7]} 22... Qb2 {[%clk 0:02:03.4]} 23. Rg3 {[%clk 0:01:42.4]} 23... f5
{[%clk 0:01:40.7]} 24. Qxh6 {[%clk 0:01:35.9]} 24... Qf6 {[%clk 0:01:40.5]} 25.
Qh5 {[%clk 0:01:23.7]} 25... Rc7 {[%clk 0:01:30.5]} 26. Re1 {[%clk 0:01:16.8]}
26... Bf7 {[%clk 0:01:20.5]} 27. Qf3 {[%clk 0:01:03.9]} 27... Bg6 {[%clk
0:01:06.3]} 28. Qxd5+ {[%clk 0:00:58.2]} 28... Rff7 {[%clk 0:01:01]} 29. Re8+
{[%clk 0:00:52]} 29... Kh7 {[%clk 0:01:00.6]} 30. Rge3 {[%clk 0:00:36]} 30...
Rfd7 {[%clk 0:00:57.1]} 31. Qg8+ {[%clk 0:00:32.9]} 31... Kh6 {[%clk 0:00:55.3]}
32. Qh8+ {[%clk 0:00:26.7]} 32... Bh7 {[%clk 0:00:55.3]} 33. Rf3 {[%clk
0:00:20.2]} 33... Re7 {[%clk 0:00:38]} 34. Rxf5 {[%clk 0:00:20.3]} 34... Re1+
{[%clk 0:00:35.9]} 35. Kh2 {[%clk 0:00:19.4]} 35... Qd6+ {[%clk 0:00:35.5]} 36.
g3 {[%clk 0:00:18.6]} 36... Rxc2 {[%clk 0:00:27]} 37. Rh5+ {[%clk 0:00:16.9]}
37... Kxh5 {[%clk 0:00:23.7]} 38. Qxh7+ {[%clk 0:00:16.2]} 38... Qh6 {[%clk
0:00:23.1]} 39. Qxh6+ {[%clk 0:00:15.3]} 39... gxh6 {[%clk 0:00:21.5]} 40. Rxe1
{[%clk 0:00:15.1]} 40... Rxf2+ {[%clk 0:00:20.9]} 41. Kg1 {[%clk 0:00:13.8]}
41... Rf3 {[%clk 0:00:20.5]} 42. Kg2 {[%clk 0:00:13.3]} 42... Rxd3 {[%clk
0:00:19.7]} 43. Re6 {[%clk 0:00:12.8]} 43... b5 {[%clk 0:00:17.3]} 44. g4+
{[%clk 0:00:11.5]} 44... Kh4 {[%clk 0:00:14.9]} 45. Rxa6 {[%clk 0:00:11.3]}
45... Rxh3 {[%clk 0:00:13.5]} 46. Rxh6+ {[%clk 0:00:10.8]} 46... Kxg4 {[%clk
0:00:11.1]} 47. Rxh3 {[%clk 0:00:11.1]} 47... Kf4 {[%clk 0:00:10.2]} 48. Rb3
{[%clk 0:00:11.3]} 48... Ke4 {[%clk 0:00:09.8]} 49. Rxb5 {[%clk 0:00:11.7]}
49... Kd4 {[%clk 0:00:09.8]} 50. Kf2 {[%clk 0:00:11.2]} 50... Kc4 {[%clk
0:00:09.5]} 51. Rh5 {[%clk 0:00:10]} 51... Kd4 {[%clk 0:00:09.3]} 52. Ke2 {[%clk
0:00:10]} 52... Ke4 {[%clk 0:00:08.8]} 53. Kd2 {[%clk 0:00:09.2]} 53... Kd4
{[%clk 0:00:08.5]} 54. Rh3 {[%clk 0:00:07.8]} 54... Ke4 {[%clk 0:00:08]} 55. Ke2
{[%clk 0:00:07.5]} 55... Kf4 {[%clk 0:00:08]} 56. Ra3 {[%clk 0:00:07.6]} 56...
Kg4 {[%clk 0:00:07.8]} 57. Kf2 {[%clk 0:00:07.4]} 57... Kf5 {[%clk 0:00:07.6]}
58. Ra4 {[%clk 0:00:06.1]} 58... Ke5 {[%clk 0:00:07.3]} 59. Kf3 {[%clk 0:00:05]}
59... Kd5 {[%clk 0:00:07.2]} 60. Ke3 {[%clk 0:00:05.4]} 60... Kc5 {[%clk
0:00:07.2]} 61. Kd3 {[%clk 0:00:05.8]} 61... Kb5 {[%clk 0:00:07.4]} 62. Rf4
{[%clk 0:00:04.6]} 62... Kc5 {[%clk 0:00:06.5]} 63. Rg4 {[%clk 0:00:04.5]} 63...
Kb5 {[%clk 0:00:06.1]} 64. Rf4 {[%clk 0:00:04.6]} 64... Kc6 {[%clk 0:00:06.2]}
65. Rf5 {[%clk 0:00:03.7]} 65... Kd6 {[%clk 0:00:06.1]} 66. Kd4 {[%clk
0:00:03.8]} 66... Ke6 {[%clk 0:00:06.1]} 67. Ra5 {[%clk 0:00:04.1]} 67... Kf6
{[%clk 0:00:06.2]} 68. Ke4 {[%clk 0:00:04.1]} 68... Kg6 {[%clk 0:00:06.1]} 69.
Kf4 {[%clk 0:00:04.5]} 69... Kh6 {[%clk 0:00:06.1]} 70. Kg4 {[%clk 0:00:04.7]}
70... Kg7 {[%clk 0:00:06.1]} 71. Ra6 {[%clk 0:00:04.5]} 71... Kf7 {[%clk
0:00:05.9]} 72. Kg5 {[%clk 0:00:04.6]} 72... Ke7 {[%clk 0:00:05.8]} 73. Kf5
{[%clk 0:00:05]} 73... Kd7 {[%clk 0:00:05.8]} 74. Ke5 {[%clk 0:00:04.9]} 74...
Kc7 {[%clk 0:00:05.9]} 75. Kd5 {[%clk 0:00:05]} 75... Kb7 {[%clk 0:00:05.8]} 76.
Rh6 {[%clk 0:00:05.5]} 76... Kc7 {[%clk 0:00:05.4]} 77. Rg6 {[%clk 0:00:04.3]}
77... Kb7 {[%clk 0:00:04.6]} 78. Kc5 {[%clk 0:00:04.4]} 78... Ka7 {[%clk
0:00:04.3]} 79. Kb5 {[%clk 0:00:04.6]} 79... Kb7 {[%clk 0:00:04.5]} 80. Rg7+
{[%clk 0:00:04.8]} 80... Kc8 {[%clk 0:00:05]} 81. Kb6 {[%clk 0:00:04.7]} 81...
Kd8 {[%clk 0:00:04.8]} 82. Kc6 {[%clk 0:00:05]} 82... Ke8 {[%clk 0:00:05]} 83.
Kd6 {[%clk 0:00:05.4]} 83... Kf8 {[%clk 0:00:05]} 84. Ra7 {[%clk 0:00:05.1]}
84... Kg8 {[%clk 0:00:04.7]} 85. Ke6 {[%clk 0:00:04.4]} 85... Kh8 {[%clk
0:00:04.4]} 86. Kf6 {[%clk 0:00:04.3]} 86... Kg8 {[%clk 0:00:04.6]} 87. Rb7
{[%clk 0:00:04.3]} 87... Kh8 {[%clk 0:00:04.2]} 88. Kg6 {[%clk 0:00:04.6]} 1-0

[Event "Betsys MČR v online bleskovém šachu 2021"]
[Site "Chess.com"]
[Date "2021.04.17"]
[Round "12"]
[White "jhdghaka"]
[Black "Bancroft"]
[Result "1-0"]
[WhiteElo "1908"]
[BlackElo "1929"]
[TimeControl "180+1"]
[EndTime "11:03:25 PDT"]
[Termination "Uživatel jhdghaka zvítězil matem"]

1. e4 {[%clk 0:03:00.9]} 1... c5 {[%clk 0:02:59.2]} 2. Nf3 {[%clk 0:02:58.3]}
2... d6 {[%clk 0:02:59.4]} 3. Bb5+ {[%clk 0:02:57.9]} 3... Nc6 {[%clk
0:02:58.4]} 4. O-O {[%clk 0:02:56.2]} 4... e5 {[%clk 0:02:58.8]} 5. Re1 {[%clk
0:02:44.8]} 5... Ne7 {[%clk 0:02:57.6]} 6. c3 {[%clk 0:02:39.7]} 6... a6 {[%clk
0:02:57.8]} 7. Bf1 {[%clk 0:02:39.1]} 7... Bg4 {[%clk 0:02:55.4]} 8. h3 {[%clk
0:02:38.8]} 8... Bxf3 {[%clk 0:02:54.1]} 9. Qxf3 {[%clk 0:02:36.5]} 9... Ng6
{[%clk 0:02:50.8]} 10. d3 {[%clk 0:02:32.7]} 10... Be7 {[%clk 0:02:50.3]} 11.
Be3 {[%clk 0:02:26.3]} 11... O-O {[%clk 0:02:49.1]} 12. Nd2 {[%clk 0:02:25.9]}
12... Bg5 {[%clk 0:02:48.8]} 13. g3 {[%clk 0:02:15.9]} 13... Bxe3 {[%clk
0:02:47.8]} 14. Qxe3 {[%clk 0:02:14.7]} 14... f5 {[%clk 0:02:47]} 15. exf5
{[%clk 0:02:04.2]} 15... Rxf5 {[%clk 0:02:46.1]} 16. Bg2 {[%clk 0:02:04.4]}
16... Qc7 {[%clk 0:02:13.6]} 17. Bd5+ {[%clk 0:02:02]} 17... Kh8 {[%clk
0:02:12.4]} 18. Ne4 {[%clk 0:01:49.4]} 18... Raf8 {[%clk 0:02:07]} 19. Ng5
{[%clk 0:01:47.5]} 19... Nd8 {[%clk 0:01:47.6]} 20. Ne6 {[%clk 0:01:17.8]} 20...
Nxe6 {[%clk 0:01:47.1]} 21. Bxe6 {[%clk 0:01:18.7]} 21... R5f6 {[%clk
0:01:45.9]} 22. Bd5 {[%clk 0:01:16.8]} 22... Ne7 {[%clk 0:01:38.5]} 23. Bg2
{[%clk 0:01:13.9]} 23... Qb6 {[%clk 0:01:27.3]} 24. f4 {[%clk 0:01:12.2]} 24...
Ng6 {[%clk 0:01:07.3]} 25. fxe5 {[%clk 0:00:59.8]} 25... Nxe5 {[%clk 0:01:07]}
26. Re2 {[%clk 0:00:55.6]} 26... h6 {[%clk 0:01:00.4]} 27. Rf1 {[%clk 0:00:48]}
27... Rxf1+ {[%clk 0:00:59.7]} 28. Bxf1 {[%clk 0:00:48.9]} 28... Nf3+ {[%clk
0:00:51.1]} 29. Kg2 {[%clk 0:00:43.3]} 29... Qc6 {[%clk 0:00:47.5]} 30. Qe4
{[%clk 0:00:42.7]} 30... Qxe4 {[%clk 0:00:43.9]} 31. dxe4 {[%clk 0:00:43.6]}
31... Ne5 {[%clk 0:00:44]} 32. Rd2 {[%clk 0:00:38.8]} 32... Rf6 {[%clk
0:00:43.8]} 33. a3 {[%clk 0:00:33.9]} 33... Kg8 {[%clk 0:00:39]} 34. b4 {[%clk
0:00:33.5]} 34... b6 {[%clk 0:00:38.5]} 35. Bxa6 {[%clk 0:00:32.3]} 35... Kf7
{[%clk 0:00:34.1]} 36. a4 {[%clk 0:00:29.1]} 36... Ke7 {[%clk 0:00:28.8]} 37. a5
{[%clk 0:00:26.7]} 37... bxa5 {[%clk 0:00:27.2]} 38. bxa5 {[%clk 0:00:27.6]}
38... Nf3 {[%clk 0:00:27.7]} 39. Rf2 {[%clk 0:00:23.7]} 39... Ne1+ {[%clk
0:00:27.2]} 40. Kf1 {[%clk 0:00:19.7]} 40... Nf3 {[%clk 0:00:24.6]} 41. Be2
{[%clk 0:00:11.4]} 41... Nd2+ {[%clk 0:00:24.5]} 42. Ke1 {[%clk 0:00:11.6]}
42... Rxf2 {[%clk 0:00:22.2]} 43. Kxf2 {[%clk 0:00:12.5]} 43... Nxe4+ {[%clk
0:00:22.7]} 44. Kf3 {[%clk 0:00:11.9]} 44... Nxc3 {[%clk 0:00:15.6]} 45. a6
{[%clk 0:00:12.4]} 45... Nd5 {[%clk 0:00:16.1]} 46. a7 {[%clk 0:00:12.2]} 46...
Nb6 {[%clk 0:00:16.2]} 47. Bb5 {[%clk 0:00:12.2]} 47... c4 {[%clk 0:00:11.4]}
48. Bxc4 {[%clk 0:00:10.5]} 48... Kd8 {[%clk 0:00:08.9]} 49. Bd5 {[%clk
0:00:10.4]} 49... Kc7 {[%clk 0:00:08]} 50. a8=Q {[%clk 0:00:10.3]} 50... Nxa8
{[%clk 0:00:08.7]} 51. Bxa8 {[%clk 0:00:11]} 51... Kd8 {[%clk 0:00:07.5]} 52.
Bd5 {[%clk 0:00:11.5]} 52... Ke7 {[%clk 0:00:08.4]} 53. Ke4 {[%clk 0:00:11.8]}
53... Kf6 {[%clk 0:00:09.3]} 54. g4 {[%clk 0:00:12.1]} 54... g6 {[%clk 0:00:09]}
55. Kf4 {[%clk 0:00:11.4]} 55... g5+ {[%clk 0:00:07.9]} 56. Ke4 {[%clk
0:00:11.8]} 56... Kg6 {[%clk 0:00:07.4]} 57. Bc6 {[%clk 0:00:11.8]} 57... h5
{[%clk 0:00:07.3]} 58. Bd7 {[%clk 0:00:11.3]} 58... h4 {[%clk 0:00:04.2]} 59.
Kd5 {[%clk 0:00:11.2]} 59... Kf6 {[%clk 0:00:04.6]} 60. Bf5 {[%clk 0:00:10.8]}
60... Ke7 {[%clk 0:00:04.2]} 61. Bg6 {[%clk 0:00:08.7]} 61... Kf6 {[%clk
0:00:04.4]} 62. Bh7 {[%clk 0:00:07.8]} 62... Kg7 {[%clk 0:00:04.4]} 63. Bd3
{[%clk 0:00:07.5]} 63... Kf6 {[%clk 0:00:04.9]} 64. Kxd6 {[%clk 0:00:07.6]}
64... Kg7 {[%clk 0:00:04.9]} 65. Ke6 {[%clk 0:00:07.8]} 65... Kh6 {[%clk
0:00:04.9]} 66. Kf5 {[%clk 0:00:06.7]} 66... Kg7 {[%clk 0:00:05.1]} 67. Kxg5
{[%clk 0:00:07.1]} 67... Kh8 {[%clk 0:00:04.8]} 68. Kxh4 {[%clk 0:00:08]} 68...
Kg8 {[%clk 0:00:05.3]} 69. Kg5 {[%clk 0:00:08.8]} 69... Kg7 {[%clk 0:00:06.2]}
70. h4 {[%clk 0:00:09.7]} 70... Kg8 {[%clk 0:00:06.9]} 71. h5 {[%clk 0:00:10.6]}
71... Kg7 {[%clk 0:00:07.8]} 72. h6+ {[%clk 0:00:10.9]} 72... Kg8 {[%clk
0:00:08.7]} 73. Kg6 {[%clk 0:00:09.5]} 73... Kh8 {[%clk 0:00:08.5]} 74. Be4
{[%clk 0:00:09.2]} 74... Kg8 {[%clk 0:00:08.6]} 75. h7+ {[%clk 0:00:06]} 75...
Kh8 {[%clk 0:00:08.8]} 76. Kh5 {[%clk 0:00:06.9]} 76... Kg7 {[%clk 0:00:08.2]}
77. g5 {[%clk 0:00:07.3]} 77... Kh8 {[%clk 0:00:08.6]} 78. g6 {[%clk 0:00:07.5]}
78... Kg7 {[%clk 0:00:09.1]} 79. Bf5 {[%clk 0:00:07.5]} 79... Kh8 {[%clk
0:00:09.6]} 80. Be6 {[%clk 0:00:07.5]} 80... Kg7 {[%clk 0:00:10.1]} 81. Bf5
{[%clk 0:00:08.3]} 81... Kh8 {[%clk 0:00:10.5]} 82. Bb1 {[%clk 0:00:07.4]} 82...
Kg7 {[%clk 0:00:11]} 83. h8=Q+ {[%clk 0:00:08]} 83... Kxh8 {[%clk 0:00:11.7]}
84. Kh6 {[%clk 0:00:08.3]} 84... Kg8 {[%clk 0:00:11.6]} 85. g7 {[%clk
0:00:08.8]} 85... Kf7 {[%clk 0:00:10.5]} 86. Ba2+ {[%clk 0:00:08.8]} 86... Kf6
{[%clk 0:00:11.1]} 87. g8=Q {[%clk 0:00:09.3]} 87... Ke5 {[%clk 0:00:11.7]} 88.
Qf7 {[%clk 0:00:09.1]} 88... Kd4 {[%clk 0:00:12.3]} 89. Qe6 {[%clk 0:00:09.4]}
89... Kc3 {[%clk 0:00:12.9]} 90. Qd5 {[%clk 0:00:09.4]} 90... Kb2 {[%clk
0:00:13.6]} 91. Qc4 {[%clk 0:00:09.3]} 91... Ka1 {[%clk 0:00:13.8]} 92. Bb3
{[%clk 0:00:07.2]} 92... Kb2 {[%clk 0:00:14.2]} 93. Kg5 {[%clk 0:00:06.1]} 93...
Ka3 {[%clk 0:00:14.5]} 94. Kf4 {[%clk 0:00:06.4]} 94... Kb2 {[%clk 0:00:15.1]}
95. Ke3 {[%clk 0:00:06]} 95... Ka3 {[%clk 0:00:16]} 96. Ba4 {[%clk 0:00:06.3]}
96... Kb2 {[%clk 0:00:16.9]} 97. Qb3+ {[%clk 0:00:06.1]} 97... Kc1 {[%clk
0:00:16.7]} 98. Qc2# {[%clk 0:00:06.2]} 1-0

[Event "Betsys MČR v online bleskovém šachu 2021"]
[Site "Chess.com"]
[Date "2021.04.17"]
[Round "12"]
[White "PavelNo"]
[Black "Jacques_se_mas"]
[Result "0-1"]
[WhiteElo "1944"]
[BlackElo "1751"]
[TimeControl "180+1"]
[EndTime "11:03:42 PDT"]
[Termination "Uživatel Jacques_se_mas zvítězil na čas"]

1. e4 {[%clk 0:03:00.9]} 1... e6 {[%clk 0:02:59.9]} 2. d4 {[%clk 0:02:58.3]}
2... b6 {[%clk 0:03:00.4]} 3. Nc3 {[%clk 0:02:57.8]} 3... Bb7 {[%clk 0:03:00]}
4. f3 {[%clk 0:02:52.6]} 4... f5 {[%clk 0:02:53.8]} 5. exf5 {[%clk 0:02:48.8]}
5... Nh6 {[%clk 0:02:52.2]} 6. fxe6 {[%clk 0:02:47.7]} 6... Nf5 {[%clk
0:02:48.1]} 7. exd7+ {[%clk 0:02:42.4]} 7... Nxd7 {[%clk 0:02:44.6]} 8. g3
{[%clk 0:02:27.6]} 8... Be7 {[%clk 0:02:35.2]} 9. Bg2 {[%clk 0:02:26.8]} 9...
O-O {[%clk 0:02:35.3]} 10. Nge2 {[%clk 0:02:26.4]} 10... Bd6 {[%clk 0:02:31.4]}
11. O-O {[%clk 0:02:25.2]} 11... Qf6 {[%clk 0:02:14.3]} 12. Bf4 {[%clk
0:02:21.6]} 12... Bxf4 {[%clk 0:02:10.5]} 13. Nxf4 {[%clk 0:02:21.4]} 13... Nxd4
{[%clk 0:02:04.6]} 14. Nce2 {[%clk 0:02:08.5]} 14... Nxe2+ {[%clk 0:01:58.7]}
15. Nxe2 {[%clk 0:02:08.2]} 15... Nc5 {[%clk 0:01:53.7]} 16. Nc3 {[%clk
0:02:00.8]} 16... Rad8 {[%clk 0:01:49]} 17. Qe1 {[%clk 0:01:57.7]} 17... Qd4+
{[%clk 0:01:45.9]} 18. Qf2 {[%clk 0:01:56.4]} 18... Qb4 {[%clk 0:01:41.6]} 19.
Rab1 {[%clk 0:01:52.4]} 19... Rd7 {[%clk 0:01:25.1]} 20. a3 {[%clk 0:01:51.6]}
20... Qd4 {[%clk 0:01:21.6]} 21. Qxd4 {[%clk 0:01:50.1]} 21... Rxd4 {[%clk
0:01:21.5]} 22. Rbd1 {[%clk 0:01:36.5]} 22... Rfd8 {[%clk 0:01:19.4]} 23. Rxd4
{[%clk 0:01:35]} 23... Rxd4 {[%clk 0:01:20.3]} 24. Rf2 {[%clk 0:01:32.5]} 24...
Kf7 {[%clk 0:01:12.9]} 25. h4 {[%clk 0:01:32]} 25... h5 {[%clk 0:01:12.1]} 26.
Kh2 {[%clk 0:01:31.1]} 26... g6 {[%clk 0:01:10.2]} 27. f4 {[%clk 0:01:27]} 27...
Bxg2 {[%clk 0:01:06.9]} 28. Kxg2 {[%clk 0:01:26.7]} 28... Ne4 {[%clk 0:01:02.1]}
29. Nxe4 {[%clk 0:01:24.6]} 29... Rxe4 {[%clk 0:01:03]} 30. Kf3 {[%clk
0:01:24.1]} 30... Rd4 {[%clk 0:00:52.3]} 31. Ke3 {[%clk 0:01:22.6]} 31... Rd6
{[%clk 0:00:52.2]} 32. Rd2 {[%clk 0:01:22.3]} 32... Re6+ {[%clk 0:00:52.5]} 33.
Kf3 {[%clk 0:01:22.1]} 33... Kf6 {[%clk 0:00:49.1]} 34. c3 {[%clk 0:01:17.2]}
34... Re1 {[%clk 0:00:45.2]} 35. Rd7 {[%clk 0:00:59.7]} 35... Rb1 {[%clk
0:00:44.3]} 36. Rxc7 {[%clk 0:00:59.5]} 36... Rxb2 {[%clk 0:00:42.1]} 37. Rxa7
{[%clk 0:00:59.1]} 37... Rb3 {[%clk 0:00:42.7]} 38. Ra6 {[%clk 0:00:58.2]} 38...
Rxc3+ {[%clk 0:00:42.4]} 39. Kf2 {[%clk 0:00:57.9]} 39... Rb3 {[%clk 0:00:41.7]}
40. a4 {[%clk 0:00:56.6]} 40... Kf5 {[%clk 0:00:42.2]} 41. a5 {[%clk 0:00:54.9]}
41... bxa5 {[%clk 0:00:35.3]} 42. Rxa5+ {[%clk 0:00:55]} 42... Kf6 {[%clk
0:00:27.9]} 43. Ra6+ {[%clk 0:00:53.5]} 43... Kf5 {[%clk 0:00:27.8]} 44. Ra5+
{[%clk 0:00:49.7]} 44... Kf6 {[%clk 0:00:27.9]} 45. Rg5 {[%clk 0:00:46.8]} 45...
Ra3 {[%clk 0:00:21.4]} 46. Kg2 {[%clk 0:00:46.5]} 46... Ra2+ {[%clk 0:00:18.4]}
47. Kh3 {[%clk 0:00:46.5]} 47... Ra3 {[%clk 0:00:18.7]} 48. Re5 {[%clk
0:00:45.5]} 48... Rb3 {[%clk 0:00:17.5]} 49. Re8 {[%clk 0:00:44.2]} 49... Kf7
{[%clk 0:00:15.8]} 50. Ra8 {[%clk 0:00:43.5]} 50... Kf6 {[%clk 0:00:15.6]} 51.
Ra6+ {[%clk 0:00:42.8]} 51... Kf5 {[%clk 0:00:15.9]} 52. Rd6 {[%clk 0:00:41.6]}
52... Rc3 {[%clk 0:00:14.6]} 53. Rd8 {[%clk 0:00:39.4]} 53... Rb3 {[%clk
0:00:14.7]} 54. Rf8+ {[%clk 0:00:38.7]} 54... Ke6 {[%clk 0:00:13.2]} 55. Re8+
{[%clk 0:00:35.3]} 55... Kf7 {[%clk 0:00:13.4]} 56. Ra8 {[%clk 0:00:33.1]} 56...
Kf6 {[%clk 0:00:13.7]} 57. Ra5 {[%clk 0:00:32.5]} 57... Rc3 {[%clk 0:00:13]} 58.
Rg5 {[%clk 0:00:29.6]} 58... Rb3 {[%clk 0:00:12.9]} 59. Kh2 {[%clk 0:00:29.7]}
59... Rb2+ {[%clk 0:00:12.8]} 60. Kh3 {[%clk 0:00:25.7]} 60... Rb3 {[%clk
0:00:13.2]} 61. Kg2 {[%clk 0:00:24]} 61... Rb2+ {[%clk 0:00:13.4]} 62. Kf3
{[%clk 0:00:24.2]} 62... Rb4 {[%clk 0:00:13.1]} 63. g4 {[%clk 0:00:22.4]} 63...
Rb3+ {[%clk 0:00:11.6]} 64. Ke4 {[%clk 0:00:21.7]} 64... Rb4+ {[%clk 0:00:10.8]}
65. Ke3 {[%clk 0:00:21.8]} 65... Rb3+ {[%clk 0:00:11]} 66. Kf2 {[%clk
0:00:17.9]} 66... Rb2+ {[%clk 0:00:10.6]} 67. Ke3 {[%clk 0:00:18]} 67... Rb3+
{[%clk 0:00:11.1]} 68. Kd2 {[%clk 0:00:18.2]} 68... hxg4 {[%clk 0:00:09.6]} 69.
Rxg4 {[%clk 0:00:17.3]} 69... Rh3 {[%clk 0:00:10]} 70. Ke2 {[%clk 0:00:13.6]}
70... Kf5 {[%clk 0:00:10.4]} 71. Rg5+ {[%clk 0:00:13.3]} 71... Kf6 {[%clk
0:00:09.7]} 72. Rg4 {[%clk 0:00:11.7]} 72... Kf5 {[%clk 0:00:10.2]} 73. Rg5+
{[%clk 0:00:10.3]} 73... Kxf4 {[%clk 0:00:08.7]} 74. Rxg6 {[%clk 0:00:09.5]}
74... Rxh4 {[%clk 0:00:09.2]} 75. Rf6+ {[%clk 0:00:09.6]} 75... Kg5 {[%clk
0:00:09.4]} 76. Rf8 {[%clk 0:00:09.1]} 76... Kg6 {[%clk 0:00:08.7]} 77. Ke3
{[%clk 0:00:09.1]} 77... Rh3+ {[%clk 0:00:08.8]} 78. Ke4 {[%clk 0:00:08.4]}
78... Rh2 {[%clk 0:00:08.4]} 79. Ke5 {[%clk 0:00:07.7]} 79... Re2+ {[%clk
0:00:08.5]} 80. Kd6 {[%clk 0:00:06.6]} 80... Rd2+ {[%clk 0:00:09]} 81. Kc5
{[%clk 0:00:05.7]} 81... Rc2+ {[%clk 0:00:09.2]} 82. Kb4 {[%clk 0:00:05.8]}
82... Rb2+ {[%clk 0:00:09]} 83. Ka3 {[%clk 0:00:06]} 83... Rb7 {[%clk
0:00:09.1]} 84. Rc8 {[%clk 0:00:06.2]} 84... Kf6 {[%clk 0:00:08.9]} 85. Ka2
{[%clk 0:00:06.6]} 85... Ke5 {[%clk 0:00:09.2]} 86. Ka1 {[%clk 0:00:06.8]} 86...
Kd6 {[%clk 0:00:09.5]} 87. Rc1 {[%clk 0:00:03.4]} 87... Kd5 {[%clk 0:00:09.7]}
88. Ka2 {[%clk 0:00:03.3]} 88... Kd4 {[%clk 0:00:09.8]} 89. Ka1 {[%clk
0:00:03.7]} 89... Kd3 {[%clk 0:00:10.2]} 90. Ka2 {[%clk 0:00:04.1]} 90... Ra7+
{[%clk 0:00:10]} 91. Kb2 {[%clk 0:00:01.9]} 91... Rb7+ {[%clk 0:00:09.3]} 92.
Ka2 {[%clk 0:00:01.5]} 92... Ra7+ {[%clk 0:00:09.6]} 0-1

[Event "Betsys MČR v online bleskovém šachu 2021"]
[Site "Chess.com"]
[Date "2021.04.17"]
[Round "13"]
[White "Petulak08"]
[Black "Kijonker"]
[Result "0-1"]
[WhiteElo "1161"]
[BlackElo "1453"]
[TimeControl "180+1"]
[EndTime "11:06:13 PDT"]
[Termination "Uživatel Kijonker zvítězil po vzdání soupeře"]

1. e4 {[%clk 0:03:00.9]} 1... e6 {[%clk 0:02:59.6]} 2. d4 {[%clk 0:02:59.9]}
2... d5 {[%clk 0:02:59.1]} 3. exd5 {[%clk 0:03:00.3]} 3... exd5 {[%clk 0:02:58]}
4. c4 {[%clk 0:03:00.9]} 4... Nf6 {[%clk 0:02:56.4]} 5. Nf3 {[%clk 0:03:00.2]}
5... Bb4+ {[%clk 0:02:54.6]} 6. Bd2 {[%clk 0:02:59.3]} 6... Bxd2+ {[%clk
0:02:54.4]} 7. Qxd2 {[%clk 0:02:59.7]} 7... c6 {[%clk 0:02:54]} 8. Nc3 {[%clk
0:03:00]} 8... Bg4 {[%clk 0:02:52.9]} 9. h3 {[%clk 0:02:59.5]} 9... Bxf3 {[%clk
0:02:52.3]} 10. g3 {[%clk 0:02:59.9]} 10... Bxh1 {[%clk 0:02:51.1]} 11. cxd5
{[%clk 0:02:51.1]} 11... Bxd5 {[%clk 0:02:46.7]} 12. Qe3+ {[%clk 0:02:48.3]}
12... Qe7 {[%clk 0:02:43.4]} 13. Nxd5 {[%clk 0:02:47.9]} 13... Nxd5 {[%clk
0:02:40.3]} 14. Qxe7+ {[%clk 0:02:48]} 14... Kxe7 {[%clk 0:02:39.1]} 15. Bc4
{[%clk 0:02:47]} 15... Re8 {[%clk 0:02:36.2]} 16. O-O-O {[%clk 0:02:47.2]} 16...
Kd6 {[%clk 0:02:35.1]} 17. Kc2 {[%clk 0:02:45.1]} 17... b5 {[%clk 0:02:32.5]}
18. Bf1 {[%clk 0:02:42.1]} 18... Nd7 {[%clk 0:02:29.5]} 19. Bg2 {[%clk
0:02:41.8]} 19... N7f6 {[%clk 0:02:28.8]} 20. f4 {[%clk 0:02:40]} 20... Re2+
{[%clk 0:02:28.2]} 21. Rd2 {[%clk 0:02:38.8]} 21... Ne3+ {[%clk 0:02:24.8]} 22.
Kd3 {[%clk 0:02:31.3]} 22... Rxd2+ {[%clk 0:02:21]} 23. Kxd2 {[%clk 0:02:30]}
23... Nxg2 {[%clk 0:02:21.1]} 0-1

[Event "Betsys MČR v online bleskovém šachu 2021"]
[Site "Chess.com"]
[Date "2021.04.17"]
[Round "13"]
[White "keram91"]
[Black "Berzeger"]
[Result "0-1"]
[WhiteElo "750"]
[BlackElo "1000"]
[TimeControl "180+1"]
[EndTime "11:06:15 PDT"]
[Termination "Uživatel Berzeger zvítězil matem"]

1. d4 {[%clk 0:03:00.9]} 1... e5 {[%clk 0:02:58.4]} 2. dxe5 {[%clk 0:03:00.2]}
2... Bc5 {[%clk 0:02:58.9]} 3. e3 {[%clk 0:02:59.1]} 3... Nc6 {[%clk 0:02:48.8]}
4. c3 {[%clk 0:02:56.6]} 4... Nxe5 {[%clk 0:02:46.5]} 5. b4 {[%clk 0:02:53.7]}
5... Bb6 {[%clk 0:02:43.9]} 6. Nf3 {[%clk 0:02:50.5]} 6... d6 {[%clk 0:02:39.6]}
7. Bb5+ {[%clk 0:02:44.6]} 7... Bd7 {[%clk 0:02:32.8]} 8. Bxd7+ {[%clk
0:02:43.4]} 8... Qxd7 {[%clk 0:02:33.2]} 9. Nxe5 {[%clk 0:02:38.5]} 9... dxe5
{[%clk 0:02:33.5]} 10. Nd2 {[%clk 0:02:29.7]} 10... Nf6 {[%clk 0:02:27.5]} 11.
h3 {[%clk 0:02:25.3]} 11... O-O-O {[%clk 0:02:21.7]} 12. g4 {[%clk 0:02:16]}
12... Ne4 {[%clk 0:02:21.7]} 13. Nxe4 {[%clk 0:01:58.1]} 13... Qxd1# {[%clk
0:02:20.4]} 0-1